bitfinex/quotes_ETHUSD_20250726
["timestamp","ask_amount","ask_price","bid_price","bid_amount"]
[1753516397325,39.48702648,3747.5,3747.4,1e-08]
[1753516398425,39.02172648,3747.5,3747.4,1e-08]
[1753516399620,39.50232648,3747.5,3747.4,1e-08]
[1753516401340,39.50235481,3747.5,3747.4,1e-08]
[1753516402755,39.50236996,3747.5,3747.4,1e-08]
[1753516404151,37.09036996,3747.5,3747.4,1e-08]
[1753516404351,39.50236996,3747.5,3747.4,1e-08]
[1753516406050,39.50436996,3747.5,3747.4,1e-08]
[1753516408150,36.61176996,3747.5,3747.4,1e-08]
[1753516408450,9.02376996,3747.5,3747.4,0.44420001]
[1753516409219,9.50436996,3747.5,3747.4,1e-08]
[1753516409834,43.33638701,3747.5,3747.4,1e-08]
[1753516413864,13.33638701,3747.5,3747.4,1e-08]
[1753516414018,43.33638701,3747.5,3747.4,1e-08]
[1753516415553,39.97706996,3747.5,3747.4,1e-08]
[1753516415761,39.50436996,3747.5,3747.4,1e-08]
[1753516418927,9.50436996,3747.5,3747.4,1e-08]
[1753516419131,39.50436996,3747.5,3747.4,1e-08]
[1753516423544,36.61176996,3747.5,3747.4,1e-08]
[1753516423743,39.02376996,3747.5,3747.4,0.44420001]
[1753516423956,39.02376996,3747.5,3747.4,1e-08]
[1753516424265,36.61176996,3747.5,3747.4,1e-08]
[1753516424476,39.02376996,3747.5,3747.4,0.44420001]
[1753516425540,36.61176996,3747.5,3747.4,1e-08]
[1753516425739,39.02376996,3747.5,3747.4,0.44420001]
[1753516425962,36.61176996,3747.5,3747.4,0.44420001]
[1753516426158,39.02376996,3747.5,3747.4,0.44420001]
[1753516426367,36.61176996,3747.5,3747.4,0.44420001]
[1753516426570,36.61176996,3747.5,3747.4,1e-08]
[1753516426869,8.77350623,3747.5,3747.4,1.67650001]
[1753516427071,9.02378529,3747.5,3747.4,1.67650001]
[1753516427252,8.47378529,3747.5,3747.4,1.67650001]
[1753516427454,8.47375097,3747.5,3747.4,1.67650001]
[1753516427854,8.33268938,3747.5,3747.4,1.67650001]
[1753516428546,5.92068938,3747.5,3747.4,1.67650001]
[1753516428746,8.33268938,3747.5,3747.4,1.67650001]
[1753516429062,8.33264638,3747.5,3747.4,1.67650001]
[1753516429469,8.33264638,3747.5,3747.4,1.20170001]
[1753516430049,8.33261892,3747.5,3747.4,1.20170001]
[1753516430242,8.08244563,3747.5,3747.4,1.20170001]
[1753516430971,5.67044563,3747.5,3747.4,1.20170001]
[1753516431170,8.08244563,3747.5,3747.4,1.20170001]
[1753516433867,8.63244563,3747.5,3747.4,1e-08]
[1753516434068,9.84954884,3747.5,3747.4,1e-08]
[1753516434281,39.99052243,3747.5,3747.4,1e-08]
[1753516437954,39.51922243,3747.5,3747.4,1e-08]
[1753516440511,39.99052243,3747.5,3747.4,1e-08]
[1753516443415,39.51922243,3747.5,3747.4,1e-08]
[1753516443836,39.51925309,3747.5,3747.4,1e-08]
[1753516445127,39.99055309,3747.5,3747.4,1e-08]
[1753516445484,39.51925309,3747.5,3747.4,1e-08]
[1753516449122,39.99055309,3747.5,3747.4,1e-08]
[1753516449722,39.99060758,3747.5,3747.4,1e-08]
[1753516452634,39.99066103,3747.5,3747.4,1e-08]
[1753516454229,39.51936103,3747.5,3747.4,1e-08]
[1753516457111,39.26917267,3747.5,3747.4,1e-08]
[1753516457316,39.51938974,3747.5,3747.4,1e-08]
[1753516457517,39.99068974,3747.5,3747.4,1e-08]
[1753516457712,39.51938974,3747.5,3747.4,1e-08]
[1753516458745,39.51940036,3747.5,3747.4,1e-08]
[1753516459935,39.96200036,3747.5,3747.4,1e-08]
[1753516460831,39.96203091,3747.5,3747.4,1e-08]
[1753516462407,44.07913006,3747.5,3747.4,1e-08]
[1753516462608,43.63653006,3747.5,3747.4,1e-08]
[1753516462916,44.07913006,3747.5,3747.4,1e-08]
[1753516464540,14.07913006,3747.5,3747.4,1e-08]
[1753516464840,44.07913006,3747.5,3747.4,1e-08]
[1753516468114,41.07913006,3747.5,3747.4,1e-08]
[1753516469713,40.63653006,3747.5,3747.4,1e-08]
[1753516470044,43.63653006,3747.5,3747.4,1e-08]
[1753516470262,44.0790871,3747.5,3747.4,1e-08]
[1753516470562,41.6670871,3747.5,3747.4,1e-08]
[1753516470765,44.0790871,3747.5,3747.4,1e-08]
[1753516471138,14.0790871,3747.5,3747.4,1e-08]
[1753516471449,44.0790871,3747.5,3747.4,1e-08]
[1753516473525,6.21851683,3747.4,3747.3,1e-08]
[1753516473732,40.08755915,3747.4,3747.3,1e-08]
[1753516474566,54.58755915,3747.4,3747.3,1e-08]
[1753516476666,61.64755915,3747.4,3747.3,1e-08]
[1753516477458,61.64755915,3747.4,3747.1,0.001]
[1753516477459,6.21865926,3747.2,3747.1,1e-08]
[1753516477663,43.27850073,3747.2,3747.1,1e-08]
[1753516477865,44.21070073,3747.2,3747.1,1e-08]
[1753516478577,58.26810073,3747.2,3747.1,1e-08]
[1753516480377,28.26810073,3747.2,3747.1,1e-08]
[1753516480541,58.26810073,3747.2,3747.1,1e-08]
[1753516480743,55.85610073,3747.2,3747.1,1e-08]
[1753516481176,58.26810073,3747.2,3747.1,1e-08]
[1753516481784,55.85610073,3747.2,3747.1,1e-08]
[1753516482196,58.26810073,3747.2,3747.1,1e-08]
[1753516483577,52.00680158,3747.2,3747.1,1e-08]
[1753516483745,53.65550158,3747.2,3747.1,0.44550001]
[1753516484079,53.65550158,3747.2,3747.1,1e-08]
[1753516484279,54.14510158,3747.2,3747.1,1e-08]
[1753516487656,51.73310158,3747.2,3747.1,1e-08]
[1753516487858,54.14510158,3747.2,3747.1,1e-08]
[1753516489285,54.90190158,3747.2,3747.1,1e-08]
[1753516489450,55.34610158,3747.2,3747.1,1e-08]
[1753516489851,2.66887293,3746.9,3746.8,0.001]
[1753516490046,38.08087293,3746.9,3746.8,0.001]
[1753516490359,8.95808821,3746.9,3746.8,0.001]
[1753516490562,38.95808821,3746.9,3746.8,0.001]
[1753516490963,39.09905854,3746.9,3746.8,0.001]
[1753516491575,9.09905854,3746.9,3746.8,0.001]
[1753516491854,39.09905854,3746.9,3746.8,0.001]
[1753516492853,39.09901941,3746.9,3746.8,0.001]
[1753516493450,38.95804908,3746.9,3746.8,0.001]
[1753516493682,39.09903531,3746.9,3746.8,0.001]
[1753516496087,9.09903531,3746.9,3746.8,0.001]
[1753516496282,39.09903531,3746.9,3746.8,0.001]
[1753516499388,39.09908822,3746.9,3746.8,0.001]
[1753516500387,38.60568822,3746.9,3746.8,0.001]
[1753516501472,38.60570838,3746.9,3746.8,0.001]
[1753516501993,39.15570838,3746.9,3746.8,0.001]
[1753516502295,39.15570838,3746.9,3746.8,0.9328]
[1753516502795,36.74370838,3746.9,3746.8,0.4672]
[1753516503101,39.15570838,3746.9,3746.8,0.4672]
[1753516503278,9.15570838,3746.9,3746.8,0.4672]
[1753516503483,39.15570838,3746.9,3746.8,0.4672]
[1753516503994,9.15570838,3746.9,3746.8,0.4672]
[1753516505799,8.60570838,3746.9,3746.8,0.9328]
[1753516506386,8.60570838,3746.9,3746.8,0.4672]
[1753516507193,9.15570838,3746.9,3746.8,0.001]
[1753516507360,9.64910838,3746.9,3746.8,0.001]
[1753516507565,39.64910838,3746.9,3746.8,0.001]
[1753516508399,39.15570838,3746.9,3746.8,0.001]
[1753516513611,9.15570838,3746.9,3746.8,0.001]
[1753516513936,6.74370838,3746.9,3746.8,0.4672]
[1753516514097,9.15570838,3746.9,3746.8,0.4672]
[1753516515804,9.15570838,3746.9,3746.8,0.001]
[1753516517232,9.15570838,3746.9,3746.8,0.4672]
[1753516519423,6.74370838,3746.9,3746.8,0.4672]
[1753516519616,9.15570838,3746.9,3746.8,0.4672]
[1753516519812,6.60270573,3746.9,3746.8,0.4706]
[1753516520123,9.01470573,3746.9,3746.8,0.9454]
[1753516520621,9.01470573,3746.9,3746.8,0.4706]
[1753516520811,8.46470573,3746.9,3746.8,0.4706]
[1753516521013,8.21447293,3746.9,3746.8,0.4706]
[1753516521214,8.46477573,3746.9,3746.8,0.4706]
[1753516521591,5.80247293,3746.9,3746.8,0.9454]
[1753516521796,5.80247293,3746.9,3746.8,1.87789]
[1753516521997,5.5456,3746.9,3746.8,1.87789]
[1753516522398,8.21447293,3746.9,3746.8,1.87789]
[1753516523129,8.21447293,3746.9,3746.8,1.7039]
[1753516523501,8.21447293,3746.9,3746.8,1.2291]
[1753516526828,5.80247293,3746.9,3746.8,1.2291]
[1753516527042,8.21447293,3746.9,3746.8,1.2291]
[1753516530655,8.21447293,3746.9,3746.8,0.7595]
[1753516530950,8.68987293,3746.9,3746.8,0.7595]
[1753516531114,8.68987293,3746.9,3746.8,0.001]
[1753516531809,9.14007293,3746.9,3746.8,0.001]
[1753516537368,9.69007293,3746.9,3746.8,0.001]
[1753516537658,40.47507293,3746.9,3746.8,0.001]
[1753516542146,40.72524747,3746.9,3746.8,0.001]
[1753516545426,40.72527321,3746.9,3746.8,0.001]
[1753516546923,10.72527321,3746.9,3746.8,0.001]
[1753516547134,40.72527321,3746.9,3746.8,0.001]
[1753516547956,10.72527321,3746.9,3746.8,0.001]
[1753516548157,40.72527321,3746.9,3746.8,0.001]
[1753516549161,40.27507321,3746.9,3746.8,0.001]
[1753516551156,40.41608028,3746.9,3746.8,0.001]
[1753516551362,40.27508185,3746.9,3746.8,0.001]
[1753516551671,39.23987293,3746.9,3746.8,0.001]
[1753516551960,39.49007566,3746.9,3746.8,0.001]
[1753516552161,39.23987293,3746.9,3746.8,0.001]
[1753516553555,8.21447293,3746.9,3746.8,0.4753]
[1753516553860,3.1336,3746.9,3746.8,0.9325]
[1753516554067,5.5456,3746.9,3746.8,0.9325]
[1753516557455,3.1336,3746.9,3746.8,0.9325]
[1753516557774,5.5456,3746.9,3746.8,0.9325]
[1753516558577,3.1336,3746.9,3746.8,0.9325]
[1753516558875,5.5456,3746.9,3746.8,0.9325]
[1753516559235,5.5456,3746.9,3746.8,0.4753]
[1753516560173,8.21447293,3746.9,3746.8,0.4753]
[1753516561135,5.80247293,3746.9,3746.8,0.4753]
[1753516561340,8.21447293,3746.9,3746.8,0.4753]
[1753516564022,5.80247293,3746.9,3746.8,0.4753]
[1753516564142,8.21447293,3746.9,3746.8,0.4753]
[1753516564881,5.5456,3746.9,3746.8,0.4753]
[1753516565181,8.21447293,3746.9,3746.8,0.4753]
[1753516565959,8.21447293,3746.9,3746.8,0.001]
[1753516566354,5.80247293,3746.9,3746.8,0.001]
[1753516566572,8.21447293,3746.9,3746.8,0.001]
[1753516567498,5.80247293,3746.9,3746.8,0.001]
[1753516567668,8.21447293,3746.9,3746.8,0.001]
[1753516568485,5.5456,3746.9,3746.8,0.001]
[1753516569200,5.5456,3746.9,3746.8,0.4753]
[1753516569698,8.21447293,3746.9,3746.8,0.4753]
[1753516570179,5.80247293,3746.9,3746.8,0.4753]
[1753516570498,8.21447293,3746.9,3746.8,0.001]
[1753516571104,8.68317293,3746.9,3746.8,0.001]
[1753516573306,6.27117293,3746.9,3746.8,0.001]
[1753516573606,8.68317293,3746.9,3746.8,0.001]
[1753516577510,6.27117293,3746.9,3746.8,0.001]
[1753516577721,8.68317293,3746.9,3746.8,0.001]
[1753516578482,6.27117293,3746.9,3746.8,0.001]
[1753516578691,8.68317293,3746.9,3746.8,0.001]
[1753516579030,6.27117293,3746.9,3746.8,0.001]
[1753516579210,8.68317293,3746.9,3746.8,0.001]
[1753516580009,6.27117293,3746.9,3746.8,0.001]
[1753516580313,8.68317293,3746.9,3746.8,0.001]
[1753516580513,6.27117293,3746.9,3746.8,0.001]
[1753516580700,8.68317293,3746.9,3746.8,0.001]
[1753516581714,6.27117293,3746.9,3746.8,0.001]
[1753516582011,8.68317293,3746.9,3746.8,0.001]
[1753516588303,5.5456,3746.9,3746.8,0.001]
[1753516588499,3.1336,3746.9,3746.8,0.4473]
[1753516588704,5.5456,3746.9,3746.8,0.4473]
[1753516589622,3.0,3746.9,3746.8,3.97676915]
[1753516589807,5.412,3746.9,3746.8,4.45156915]
[1753516590726,0.1356,3747.0,3746.8,4.45156915]
[1753516590921,2.411,3746.9,3746.8,4.00526915]
[1753516591137,2.411,3746.9,3746.8,0.17077]
[1753516591632,2.411,3746.9,3746.8,0.61707]
[1753516594800,2.871,3746.9,3746.8,0.001]
[1753516597603,5.99967293,3746.9,3746.8,0.001]
[1753516604646,7.31777293,3746.9,3746.8,0.001]
[1753516605305,2.80445886,3747.0,3746.8,0.001]
[1753516605510,5.54087293,3746.9,3746.8,0.001]
[1753516605712,0.1356,3747.0,3746.9,0.4463]
[1753516605911,0.1356,3747.0,3746.9,0.877349]
[1753516606216,2.416,3747.0,3746.9,4.15462193]
[1753516606552,2.416,3747.0,3746.9,4.92172193]
[1753516606741,0.002,3747.0,3746.9,4.92172193]
[1753516606906,2.416,3747.0,3746.9,4.92172193]
[1753516613150,2.416,3747.0,3746.9,1.778049]
[1753516614248,2.416,3747.0,3746.9,4.44692193]
[1753516616320,2.416,3747.0,3746.9,1.778049]
[1753516617158,2.416,3747.0,3746.9,1.331749]
[1753516619012,2.416,3747.0,3746.9,0.431049]
[1753516619217,2.8861,3747.0,3746.8,0.1346]
[1753516619460,0.4701,3746.9,3746.8,0.1346]
[1753516620311,0.9372,3746.9,3746.8,0.001]
[1753516622450,3.60607293,3746.9,3746.8,0.001]
[1753516622656,3.73967293,3746.9,3746.8,0.001]
[1753516622829,6.15267293,3746.9,3746.8,0.001]
[1753516623232,3.4838,3746.9,3746.8,0.001]
[1753516623738,3.0167,3746.9,3746.8,0.001]
[1753516625821,0.6037,3746.9,3746.8,0.001]
[1753516626045,3.0177,3746.9,3746.8,0.001]
[1753516626956,0.6037,3746.9,3746.8,0.001]
[1753516627150,3.0177,3746.9,3746.8,0.001]
[1753516629156,3.4848,3746.9,3746.8,0.001]
[1753516636052,3.0177,3746.9,3746.8,0.001]
[1753516636889,2.5466,3746.9,3746.8,0.4742]
[1753516637273,2.5466,3746.9,3746.8,0.001]
[1753516637686,3.0167,3746.9,3746.8,0.001]
[1753516638759,3.0167,3746.9,3746.8,3.98501792]
[1753516638760,2.413,3746.9,3746.8,3.98501792]
[1753516638958,0.002,3747.0,3746.9,2.66887293]
[1753516639192,0.002,3747.0,3746.9,3.61516165]
[1753516639193,2.416,3747.0,3746.9,3.61516165]
[1753516639401,2.416,3747.0,3746.9,4.79877305]
[1753516639576,0.002,3747.0,3746.9,5.63486177]
[1753516639779,2.416,3747.0,3746.9,5.60817305]
[1753516643316,2.416,3747.0,3746.9,5.13337305]
[1753516646619,0.002,3747.0,3746.9,5.13337305]
[1753516653793,0.002,3747.0,3746.9,4.68857305]
[1753516654326,0.4853,3747.0,3746.9,4.68857305]
[1753516654694,0.002,3747.0,3746.9,3.87917305]
[1753516654925,0.4853,3747.0,3746.9,3.87917305]
[1753516655626,0.4853,3747.0,3746.9,1.21030012]
[1753516655807,0.9199,3747.0,3746.8,0.1346]
[1753516656204,0.9179,3746.9,3746.8,0.001]
[1753516656793,4.34577293,3746.9,3746.8,0.001]
[1753516657952,7.34577293,3746.9,3746.8,0.001]
[1753516658128,37.34577293,3746.9,3746.8,0.001]
[1753516659737,39.75977293,3746.9,3746.8,0.001]
[1753516660033,4.34577293,3746.9,3746.8,0.001]
[1753516660250,6.75977293,3746.9,3746.8,0.001]
[1753516664965,1.2423,3746.9,3746.8,0.001]
[1753516665252,4.0899,3746.9,3746.8,0.001]
[1753516665773,6.75877293,3746.9,3746.8,0.001]
[1753516672871,10.30877293,3746.9,3746.8,0.001]
[1753516673443,40.30877293,3746.9,3746.8,0.001]
[1753516673637,40.55855868,3746.9,3746.8,0.001]
[1753516682652,6.21894416,3746.8,3746.6,1e-08]
[1753516682857,39.65810787,3746.7,3746.6,1e-08]
[1753516683059,40.11610787,3746.7,3746.6,1e-08]
[1753516683263,40.57850787,3746.7,3746.6,1e-08]
[1753516683466,40.7192708,3746.7,3746.6,1e-08]
[1753516686755,55.2192708,3746.7,3746.6,1e-08]
[1753516688497,55.35875637,3746.7,3746.6,1e-08]
[1753516689491,55.49235637,3746.7,3746.6,1e-08]
[1753516690701,25.49235637,3746.7,3746.6,1e-08]
[1753516691166,55.49235637,3746.7,3746.6,1e-08]
[1753516691709,25.49235637,3746.7,3746.6,1e-08]
[1753516691869,55.49235637,3746.7,3746.6,1e-08]
[1753516692066,55.4918875,3746.7,3746.6,1e-08]
[1753516693062,55.24237804,3746.7,3746.6,1e-08]
[1753516693500,55.10180097,3746.7,3746.6,1e-08]
[1753516694190,55.30077253,3746.7,3746.6,1e-08]
[1753516695001,37.01522912,3746.4,3746.3,1e-08]
[1753516695193,39.56282912,3746.4,3746.3,1e-08]
[1753516695506,40.02522912,3746.4,3746.3,1e-08]
[1753516695710,43.87222912,3746.4,3746.3,1e-08]
[1753516697906,44.12163616,3746.4,3746.3,1e-08]
[1753516698108,44.26215009,3746.4,3746.3,1e-08]
[1753516698689,44.12163616,3746.4,3746.3,1e-08]
[1753516699377,44.26217972,3746.4,3746.3,1e-08]
[1753516701402,44.26230866,3746.4,3746.3,1e-08]
[1753516701891,44.2623595,3746.4,3746.3,1e-08]
[1753516704321,44.26250697,3746.4,3746.3,1e-08]
[1753516705019,44.26250707,3746.4,3746.3,1e-08]
[1753516706617,43.80010707,3746.4,3746.3,1e-08]
[1753516706810,44.70830707,3746.4,3746.3,1e-08]
[1753516708622,44.71030707,3746.4,3746.3,1e-08]
[1753516709019,14.71030707,3746.4,3746.3,1e-08]
[1753516709337,44.71030707,3746.4,3746.3,1e-08]
[1753516711597,44.25850707,3746.4,3746.3,1e-08]
[1753516713739,44.25885221,3746.4,3746.3,1e-08]
[1753516716122,14.25885221,3746.4,3746.3,1e-08]
[1753516716331,44.25885221,3746.4,3746.3,1e-08]
[1753516717328,14.25885221,3746.4,3746.3,1e-08]
[1753516717826,44.25885221,3746.4,3746.3,1e-08]
[1753516719029,44.25938101,3746.4,3746.3,1e-08]
[1753516726704,14.25938101,3746.4,3746.3,1e-08]
[1753516726909,44.25938101,3746.4,3746.3,1e-08]
[1753516727740,44.25588101,3746.4,3746.3,1e-08]
[1753516728035,51.92302373,3746.4,3746.3,1e-08]
[1753516728407,66.42302373,3746.4,3746.3,1e-08]
[1753516728941,36.42302373,3746.4,3746.3,1e-08]
[1753516729140,66.42302373,3746.4,3746.3,1e-08]
[1753516729704,63.09912373,3746.4,3746.3,1e-08]
[1753516729909,65.51210229,3746.4,3746.3,1e-08]
[1753516730109,51.01210229,3746.4,3746.3,1e-08]
[1753516730722,51.0121282,3746.4,3746.3,1e-08]
[1753516730921,51.4650282,3746.4,3746.3,1e-08]
[1753516733657,51.21481248,3746.4,3746.3,1e-08]
[1753516733953,21.46499997,3746.4,3746.3,1e-08]
[1753516734153,51.46499994,3746.4,3746.3,1e-08]
[1753516736053,51.92199304,3746.4,3746.3,1e-08]
[1753516736441,50.21609304,3746.4,3746.3,1e-08]
[1753516736956,47.80308639,3746.4,3746.3,0.43350001]
[1753516737281,0.39312951,3746.4,3746.3,5.18529447]
[1753516737579,2.415,3746.4,3746.3,5.18529447]
[1753516738067,2.66519486,3746.4,3746.3,5.18529447]
[1753516738279,2.415,3746.4,3746.3,5.18529447]
[1753516738423,2.424,3746.4,3746.3,5.18529447]
[1753516738835,2.424,3746.4,3746.3,1.82379001]
[1753516739061,0.002,3746.4,3746.3,1.82379001]
[1753516739385,2.423,3746.4,3746.3,1.82379001]
[1753516748282,5.09222912,3746.4,3746.3,0.92639001]
[1753516748483,5.09222912,3746.4,3746.3,1.19400001]
[1753516748683,5.09222912,3746.4,3746.3,0.76050001]
[1753516748889,5.67872912,3746.4,3746.3,0.76050001]
[1753516749686,8.67872912,3746.4,3746.3,1e-08]
[1753516761168,9.14062912,3746.4,3746.3,1e-08]
[1753516761911,9.69062912,3746.4,3746.3,1e-08]
[1753516762078,10.49332912,3746.4,3746.3,1e-08]
[1753516764215,40.49332912,3746.4,3746.3,1e-08]
[1753516769124,5.80482912,3746.4,3746.3,0.45700001]
[1753516769293,8.22482912,3746.4,3746.3,1.72010001]
[1753516769610,5.80482912,3746.4,3746.3,1.72010001]
[1753516769817,8.22482912,3746.4,3746.3,1.72010001]
[1753516771516,5.80482912,3746.4,3746.3,1.72010001]
[1753516771704,8.22482912,3746.4,3746.3,1.72010001]
[1753516772990,5.5556,3746.4,3746.3,1.72010001]
[1753516775923,8.22482912,3746.4,3746.3,1.72010001]
[1753516776225,5.80482912,3746.4,3746.3,1.24530001]
[1753516776427,8.22382912,3746.4,3746.3,1.24530001]
[1753516776628,5.5546,3746.4,3746.3,1.24530001]
[1753516777605,8.22382912,3746.4,3746.3,1.24530001]
[1753516777792,8.22382912,3746.4,3746.3,0.45700001]
[1753516778429,8.22382912,3746.4,3746.3,1e-08]
[1753516779527,5.80482912,3746.4,3746.3,1e-08]
[1753516779729,8.22382912,3746.4,3746.3,1e-08]
[1753516780322,5.5546,3746.4,3746.3,1e-08]
[1753516780532,5.5546,3746.4,3746.3,0.45700001]
[1753516781028,3.1356,3746.4,3746.3,0.45700001]
[1753516781193,5.5546,3746.4,3746.3,0.45700001]
[1753516782198,3.1356,3746.4,3746.3,0.45700001]
[1753516782529,5.5536,3746.4,3746.3,0.45700001]
[1753516783825,5.42,3746.4,3746.3,1.72170001]
[1753516784008,5.42,3746.4,3746.3,2.16091915]
[1753516785031,5.42,3746.4,3746.3,1.24690001]
[1753516786929,3.002,3746.4,3746.3,1.24690001]
[1753516787117,5.42,3746.4,3746.3,1.24690001]
[1753516789548,8.08922912,3746.4,3746.3,1.24690001]
[1753516789693,8.08922912,3746.4,3746.3,0.78990001]
[1753516793934,8.55422912,3746.4,3746.3,0.78990001]
[1753516794938,5.42,3746.4,3746.3,0.78990001]
[1753516797540,8.08922912,3746.4,3746.3,0.78990001]
[1753516797909,8.55422912,3746.4,3746.3,0.78990001]
[1753516798643,5.419,3746.4,3746.3,0.78990001]
[1753516800211,5.419,3746.4,3746.3,1e-08]
[1753516800404,5.419,3746.4,3746.3,0.45700001]
[1753516800405,3.002,3746.4,3746.3,0.45700001]
[1753516800637,5.419,3746.4,3746.3,0.93180001]
[1753516800846,5.419,3746.4,3746.3,0.45700001]
[1753516800847,8.08822912,3746.4,3746.3,0.45700001]
[1753516801236,8.08722912,3746.4,3746.3,0.45700001]
[1753516803412,0.002,3746.4,3746.3,0.93027001]
[1753516803644,2.418,3746.4,3746.3,1.69270001]
[1753516803840,5.08722912,3746.4,3746.3,1.21790001]
[1753516804037,2.418,3746.4,3746.3,1.21790001]
[1753516804832,0.002,3746.4,3746.3,1.21790001]
[1753516805044,2.418,3746.4,3746.3,1.21790001]
[1753516805447,2.418,3746.4,3746.3,1.69270001]
[1753516805748,2.418,3746.4,3746.3,1.99016022]
[1753516806041,2.418,3746.4,3746.3,2.59856022]
[1753516807141,2.418,3746.4,3746.3,2.12376022]
[1753516807441,2.418,3746.4,3746.3,4.79306059]
[1753516807629,2.418,3746.4,3746.3,2.12376022]
[1753516808465,2.418,3746.4,3746.3,5.26786059]
[1753516808852,2.418,3746.4,3746.3,9.74590726]
[1753516809056,0.002,3746.4,3746.3,9.74590726]
[1753516812067,0.002,3747.0,3746.9,3.49867293]
[1753516812269,0.002,3747.0,3746.9,4.11543662]
[1753516812455,0.002,3747.0,3746.9,4.70603662]
[1753516812658,0.002,3747.0,3746.9,5.18083662]
[1753516812865,0.002,3747.0,3746.9,5.20752534]
[1753516814547,0.002,3747.0,3746.9,5.18083662]
[1753516815174,0.002,3747.0,3746.9,5.20752534]
[1753516815671,0.002,3747.0,3746.9,5.18083662]
[1753516816756,0.002,3747.0,3746.9,7.59883662]
[1753516825882,0.002,3747.0,3746.9,7.12403662]
[1753516827181,0.002,3747.0,3746.9,6.66703662]
[1753516827345,0.4603,3747.0,3746.9,6.66703662]
[1753516828561,0.002,3747.0,3746.9,6.66703662]
[1753516829063,0.4603,3747.0,3746.9,6.66703662]
[1753516830181,0.002,3747.0,3746.9,6.66703662]
[1753516830691,0.002,3747.0,3746.9,7.11683662]
[1753516835958,0.002,3747.0,3746.9,7.57083662]
[1753516836157,0.002,3747.2,3747.1,3.47453048]
[1753516836369,0.002,3747.2,3747.1,7.38657916]
[1753516836600,0.002,3747.2,3747.1,8.39729186]
[1753516837017,0.002,3747.2,3747.1,7.94329186]
[1753516837182,0.002,3747.2,3747.1,8.39729186]
[1753516838615,0.002,3747.2,3747.1,7.94329186]
[1753516844589,1e-08,3747.2,3747.1,8.39729186]
[1753516845192,1e-08,3747.2,3747.1,11.39729186]
[1753516846747,0.14142449,3749.1,3747.2,0.7695]
[1753516847042,0.002,3749.1,3748.8,2.66752027]
[1753516847341,0.002,3749.1,3748.8,5.09452027]
[1753516847528,0.4368,3748.9,3748.8,5.09452027]
[1753516848047,1e-08,3749.0,3748.9,5.66744911]
[1753516848723,0.47510001,3749.0,3748.9,5.66744911]
[1753516849041,1e-08,3749.0,3748.9,5.66744911]
[1753516849204,0.8319,3750.2,3749.8,2.66678484]
[1753516849405,0.8319,3750.2,3749.9,2.66673777]
[1753516849846,0.9057,3750.1,3749.9,2.66673777]
[1753516850047,0.8319,3750.2,3749.9,2.66673777]
[1753516850245,0.9057,3750.0,3749.9,2.66673777]
[1753516853856,0.9057,3750.0,3749.8,2.66679212]
[1753516854068,0.8319,3750.2,3749.7,2.436]
[1753516854225,0.9057,3749.9,3749.8,2.66673797]
[1753516856080,0.8291,3749.8,3748.8,1.59601345]
[1753516856259,0.9057,3749.7,3749.5,2.66700567]
[1753516856438,0.8291,3749.8,3749.5,5.10200567]
[1753516856642,0.9057,3749.6,3749.5,5.10200567]
[1753516857038,0.9057,3749.6,3749.5,5.23560567]
[1753516858758,0.9057,3749.6,3749.5,2.80060567]
[1753516858936,0.9057,3749.6,3749.5,5.23460567]
[1753516859361,0.9057,3749.6,3749.5,5.55422578]
[1753516860586,0.9077,3749.6,3749.5,5.55422578]
[1753516865315,0.9077,3749.6,3749.5,5.23460567]
[1753516866908,0.9077,3749.6,3749.5,2.80060567]
[1753516867400,0.9077,3749.6,3749.5,5.23260567]
[1753516869392,0.9077,3749.6,3749.5,2.5656]
[1753516870193,0.9077,3749.6,3749.5,0.1336]
[1753516870399,0.9077,3749.6,3749.5,2.5646]
[1753516871228,0.9077,3749.6,3749.5,0.1336]
[1753516871394,0.9077,3749.6,3749.5,2.5646]
[1753516872168,1.2766,3749.6,3749.5,0.1336]
[1753516872336,1.8408,3749.6,3749.2,2.43]
[1753516872638,0.9057,3749.5,3749.2,2.43]
[1753516872996,0.9057,3749.4,3749.2,2.43]
[1753516873191,0.9057,3749.3,3749.2,2.43]
[1753516873391,0.9351,3749.6,3749.1,0.1336]
[1753516873699,0.4751,3749.5,3749.4,0.1336]
[1753516876008,0.9057,3749.5,3749.4,0.1336]
[1753516877728,0.7995,3749.4,3749.0,2.432]
[1753516877934,0.7995,3749.4,3749.0,2.5656]
[1753516878151,0.9197,3749.3,3749.0,2.5656]
[1753516878460,0.4628,3749.2,3749.0,2.5656]
[1753516878614,0.4569,3749.3,3749.0,2.5656]
[1753516878924,0.4628,3749.1,3749.0,2.5656]
[1753516880845,0.4628,3749.3,3749.0,5.23297796]
[1753516881011,0.7995,3749.4,3749.0,5.23297796]
[1753516881350,0.4628,3749.3,3749.0,2.5656]
[1753516881548,0.4628,3749.2,3749.0,2.5656]
[1753516881717,0.4569,3749.3,3749.0,2.5656]
[1753516881918,0.4628,3749.1,3749.0,2.5656]
[1753516883940,0.4628,3749.1,3749.0,5.23297796]
[1753516884145,0.4628,3749.3,3749.0,6.06697383]
[1753516884351,0.4628,3749.2,3749.0,6.06697383]
[1753516884669,0.4628,3749.2,3749.1,2.66730682]
[1753516886758,0.4628,3749.2,3749.0,6.06695891]
[1753516887442,1.2564,3749.4,3749.0,5.23297521]
[1753516887648,0.4569,3749.2,3749.0,5.23297521]
[1753516888168,0.4628,3749.1,3749.0,5.23297521]
[1753516888463,0.9197,3749.1,3749.0,0.1336]
[1753516891569,0.4628,3749.1,3749.0,0.1336]
[1753516891970,0.4628,3749.1,3749.0,2.80097796]
[1753516902692,1.2564,3749.4,3749.1,2.66726964]
[1753516902901,0.4628,3749.3,3749.1,2.66726964]
[1753516904693,0.4628,3749.3,3749.2,2.66723567]
[1753516904885,0.4628,3749.3,3749.1,2.66728857]
[1753516905350,0.4628,3749.2,3749.1,2.66728857]